[Event "*** Titled Tuesday Blitz"]
[Site "Chess.com"]
[Date "2018.06.05"]
[Round "4"]
[White "sere99"]
[Black "51616516516"]
[Result "1/2-1/2"]
[WhiteElo "2267"]
[BlackElo "2286"]
[TimeControl "180+2"]
[EndTime "14:00:23 PDT"]
[Termination "Game drawn by agreement"]

1. d4 {[%clk 0:03:01.9]} 1... Nf6 {[%clk 0:03:00.2]} 2. c4 {[%clk 0:03:02.8]}
2... g6 {[%clk 0:03:01.5]} 3. Nf3 {[%clk 0:03:03.7]} 3... Bg7 {[%clk 0:03:02.7]}
4. g3 {[%clk 0:03:05.3]} 4... d6 {[%clk 0:03:04.1]} 5. Bg2 {[%clk 0:03:06.7]}
5... O-O {[%clk 0:03:05.4]} 6. O-O {[%clk 0:03:08.2]} 6... Nc6 {[%clk
0:03:06.8]} 7. Nc3 {[%clk 0:03:09.7]} 7... Bf5 {[%clk 0:03:07.9]} 8. Ne1 {[%clk
0:03:09.9]} 8... e5 {[%clk 0:03:04.2]} 9. d5 {[%clk 0:03:10.3]} 9... Ne7 {[%clk
0:02:49.5]} 10. e4 {[%clk 0:03:10.1]} 10... Bg4 {[%clk 0:02:49.8]} 11. f3 {[%clk
0:03:09.9]} 11... Bd7 {[%clk 0:02:50.8]} 12. Be3 {[%clk 0:03:11.2]} 12... c6
{[%clk 0:02:48.7]} 13. dxc6 {[%clk 0:02:57.5]} 13... Bxc6 {[%clk 0:02:41.1]} 14.
Rf2 {[%clk 0:02:58]} 14... Qc7 {[%clk 0:02:36.6]} 15. Rc1 {[%clk 0:02:56.4]}
15... Rfd8 {[%clk 0:02:30.9]} 16. Rd2 {[%clk 0:02:55.8]} 16... Ne8 {[%clk
0:02:24.2]} 17. Nd3 {[%clk 0:02:37.8]} 17... h6 {[%clk 0:02:19.6]} 18. Nb4
{[%clk 0:02:37.2]} 18... f5 {[%clk 0:02:19.9]} 19. Ncd5 {[%clk 0:02:12.5]} 19...
Bxd5 {[%clk 0:02:17.1]} 20. Nxd5 {[%clk 0:02:09]} 20... Nxd5 {[%clk 0:02:13.1]}
21. Rxd5 {[%clk 0:01:58.8]} 21... Nf6 {[%clk 0:02:03.9]} 22. Rd2 {[%clk
0:01:58.8]} 22... fxe4 {[%clk 0:02:04.4]} 23. fxe4 {[%clk 0:01:59.4]} 23... h5
{[%clk 0:01:48.6]} 24. h3 {[%clk 0:01:58.9]} 24... Qc6 {[%clk 0:01:25.8]} 25. c5
{[%clk 0:01:50.9]} 25... Rac8 {[%clk 0:00:44.1]} 26. Rcc2 {[%clk 0:01:45]} 26...
Qa6 {[%clk 0:00:33.6]} 27. Rc3 {[%clk 0:01:03.6]} 27... Rc6 {[%clk 0:00:19.7]}
28. Rcd3 {[%clk 0:01:03.4]} 28... Qxa2 {[%clk 0:00:17.3]} 29. Rxd6 {[%clk
0:00:58.8]} 29... Rcxd6 {[%clk 0:00:18.5]} 30. cxd6 {[%clk 0:01:00.5]} 30... Qc4
{[%clk 0:00:17.5]} 31. Qf3 {[%clk 0:00:53.4]} 31... Rd7 {[%clk 0:00:11.1]} 32.
Kh2 {[%clk 0:00:53.9]} 32... Qb4 {[%clk 0:00:11.8]} 33. Bg5 {[%clk 0:00:49.4]}
33... Rxd6 {[%clk 0:00:12.1]} 34. Rf2 {[%clk 0:00:46.4]} 34... Nd7 {[%clk
0:00:07.6]} 35. Qf7+ {[%clk 0:00:46.6]} 35... Kh7 {[%clk 0:00:09]} 36. Be7
{[%clk 0:00:46.8]} 36... Qd4 {[%clk 0:00:05.9]} 37. Bxd6 {[%clk 0:00:45.1]}
37... Qxd6 {[%clk 0:00:07.8]} 38. Qb3 {[%clk 0:00:44.3]} 38... Nc5 {[%clk
0:00:08.3]} 39. Qc4 {[%clk 0:00:44.8]} 39... b6 {[%clk 0:00:09.6]} 40. Rf7
{[%clk 0:00:44.5]} 40... Ne6 {[%clk 0:00:09.8]} 41. Rxa7 {[%clk 0:00:44.5]}
41... Ng5 {[%clk 0:00:08.4]} 42. Qe2 {[%clk 0:00:44.6]} 42... Qc5 {[%clk
0:00:08.6]} 43. Ra3 {[%clk 0:00:42.9]} 43... b5 {[%clk 0:00:09.5]} 44. Rb3
{[%clk 0:00:43.4]} 44... b4 {[%clk 0:00:09.9]} 45. Rd3 {[%clk 0:00:43.3]} 45...
Ne6 {[%clk 0:00:09.1]} 46. Qe3 {[%clk 0:00:40.8]} 46... Nd4 {[%clk 0:00:09.3]}
47. Qd2 {[%clk 0:00:37.8]} 47... Qc4 {[%clk 0:00:08.9]} 48. Re3 {[%clk
0:00:35.1]} 48... Bh6 {[%clk 0:00:09.2]} 49. Qd3 {[%clk 0:00:32.9]} 49... Qc1
{[%clk 0:00:05.3]} 50. Re2 {[%clk 0:00:24.9]} 50... Nxe2 {[%clk 0:00:06.5]} 51.
Qxe2 {[%clk 0:00:25.3]} 51... Be3 {[%clk 0:00:08]} 52. Bf1 {[%clk 0:00:24.7]}
52... Qd2 {[%clk 0:00:07.6]} 53. Qxd2 {[%clk 0:00:24.5]} 53... Bxd2 {[%clk
0:00:09.5]} 54. b3 {[%clk 0:00:26.4]} 54... g5 {[%clk 0:00:08.7]} 55. Kg2 {[%clk
0:00:25.8]} 55... h4 {[%clk 0:00:10.1]} 56. gxh4 {[%clk 0:00:26.1]} 56... gxh4
{[%clk 0:00:12]} 57. Kf3 {[%clk 0:00:28]} 57... Kg7 {[%clk 0:00:12]} 58. Kg4
{[%clk 0:00:29.9]} 58... Be1 {[%clk 0:00:12.9]} 59. Kf5 {[%clk 0:00:31.4]} 59...
Bg3 {[%clk 0:00:14.5]} 60. Be2 {[%clk 0:00:32.6]} 60... Kf7 {[%clk 0:00:15.1]}
61. Bc4+ {[%clk 0:00:34.5]} 61... Ke7 {[%clk 0:00:16.4]} 62. Bd5 {[%clk
0:00:35.8]} 62... Kd6 {[%clk 0:00:17.5]} 63. Kf6 {[%clk 0:00:36.9]} 63... Bf2
{[%clk 0:00:18.1]} 64. Kg5 {[%clk 0:00:37.6]} 64... Bg3 {[%clk 0:00:19.1]} 65.
Kg4 {[%clk 0:00:39.2]} 65... Bf2 {[%clk 0:00:19.3]} 66. Kf3 {[%clk 0:00:41.1]}
66... Bg3 {[%clk 0:00:20.3]} 67. Ke2 {[%clk 0:00:43]} 67... Bf4 {[%clk
0:00:20.4]} 68. Kd3 {[%clk 0:00:44.9]} 68... Bg3 {[%clk 0:00:21.9]} 69. Kc4
{[%clk 0:00:46.8]} 69... Be1 {[%clk 0:00:23.4]} 70. Kd3 {[%clk 0:00:48.2]} 70...
Bc3 {[%clk 0:00:24.9]} 71. Ke2 {[%clk 0:00:50.1]} 71... Bd4 {[%clk 0:00:25.4]}
72. Kf3 {[%clk 0:00:51.1]} 72... Bc3 {[%clk 0:00:26.9]} 73. Kg2 {[%clk 0:00:53]}
73... Be1 {[%clk 0:00:28.2]} 74. Kg1 {[%clk 0:00:53.8]} 74... Bg3 {[%clk
0:00:30.1]} 75. Kf1 {[%clk 0:00:55.2]} 75... Bf4 {[%clk 0:00:31.1]} 76. Ke2
{[%clk 0:00:56.7]} 76... Bg3 {[%clk 0:00:33]} 77. Kf3 {[%clk 0:00:58.2]} 77...
Be1 {[%clk 0:00:33.9]} 78. Kg4 {[%clk 0:00:59]} 78... Bg3 {[%clk 0:00:34.4]} 79.
Kf3 {[%clk 0:01:00.5]} 79... Be1 {[%clk 0:00:35.2]} 80. Kg2 {[%clk 0:01:02.4]}
80... Bg3 {[%clk 0:00:36]} 81. Kh1 {[%clk 0:01:03.2]} 81... Kc5 {[%clk
0:00:37.3]} 82. Kg1 {[%clk 0:01:03.8]} 82... Kd4 {[%clk 0:00:38.6]} 83. Kg2
{[%clk 0:01:05.3]} 83... Ke3 {[%clk 0:00:39.8]} 84. Kf1 {[%clk 0:01:04]} 84...
Bf2 {[%clk 0:00:39.5]} 85. Kg2 {[%clk 0:01:03.3]} 1/2-1/2

[Event "*** Titled Tuesday Blitz"]
[Site "Chess.com"]
[Date "2018.06.05"]
[Round "4"]
[White "sari07"]
[Black "Jooonaaas1996"]
[Result "1/2-1/2"]
[WhiteElo "2178"]
[BlackElo "2278"]
[TimeControl "180+2"]
[EndTime "14:00:26 PDT"]
[Termination "Game drawn - insufficient material"]

1. d4 {[%clk 0:03:01.9]} 1... Nf6 {[%clk 0:02:57.5]} 2. c4 {[%clk 0:03:02.4]}
2... e6 {[%clk 0:02:57.7]} 3. Nf3 {[%clk 0:03:02]} 3... d5 {[%clk 0:02:58.3]} 4.
g3 {[%clk 0:03:02.8]} 4... Bb4+ {[%clk 0:02:58.1]} 5. Bd2 {[%clk 0:03:03]} 5...
Bd6 {[%clk 0:02:57.9]} 6. Bg2 {[%clk 0:03:01.8]} 6... O-O {[%clk 0:02:57]} 7.
O-O {[%clk 0:03:02.6]} 7... c6 {[%clk 0:02:57.9]} 8. Nc3 {[%clk 0:03:02.3]} 8...
Nbd7 {[%clk 0:02:50.7]} 9. e4 {[%clk 0:02:59.1]} 9... Nxe4 {[%clk 0:02:31.8]}
10. Nxe4 {[%clk 0:02:59.1]} 10... dxe4 {[%clk 0:02:33.7]} 11. Ng5 {[%clk
0:03:00.3]} 11... Nf6 {[%clk 0:02:34.3]} 12. Nxe4 {[%clk 0:02:59.4]} 12... Nxe4
{[%clk 0:02:31.9]} 13. Bxe4 {[%clk 0:03:01.3]} 13... Be7 {[%clk 0:02:32.2]} 14.
Bc3 {[%clk 0:02:45.5]} 14... Bf6 {[%clk 0:02:32.3]} 15. Qc2 {[%clk 0:02:37.2]}
15... g6 {[%clk 0:02:30.6]} 16. Rad1 {[%clk 0:02:36.8]} 16... Qe7 {[%clk
0:02:10.7]} 17. Rfe1 {[%clk 0:02:30.4]} 17... Bd7 {[%clk 0:01:49.3]} 18. a3
{[%clk 0:02:19.7]} 18... Rfe8 {[%clk 0:01:43.1]} 19. h4 {[%clk 0:01:50.2]} 19...
Qf8 {[%clk 0:01:41.6]} 20. h5 {[%clk 0:01:47]} 20... Qg7 {[%clk 0:01:42.2]} 21.
hxg6 {[%clk 0:01:46.5]} 21... hxg6 {[%clk 0:01:39.9]} 22. Bf3 {[%clk 0:01:33.1]}
22... Rad8 {[%clk 0:01:36.7]} 23. Kg2 {[%clk 0:01:26]} 23... Bc8 {[%clk
0:01:36.4]} 24. Qe4 {[%clk 0:01:15.3]} 24... Rd7 {[%clk 0:01:25.5]} 25. Rd3
{[%clk 0:00:32.4]} 25... Red8 {[%clk 0:01:23.2]} 26. Red1 {[%clk 0:00:33.1]}
26... Re7 {[%clk 0:01:17.4]} 27. d5 {[%clk 0:00:18.3]} 27... cxd5 {[%clk
0:00:49.9]} 28. cxd5 {[%clk 0:00:18.8]} 28... Bxc3 {[%clk 0:00:45.6]} 29. bxc3
{[%clk 0:00:19.5]} 29... Qf6 {[%clk 0:00:42.1]} 30. d6 {[%clk 0:00:20.3]} 30...
Red7 {[%clk 0:00:42.4]} 31. c4 {[%clk 0:00:21.7]} 31... b6 {[%clk 0:00:40.9]}
32. Qd4 {[%clk 0:00:20.5]} 32... Qxd4 {[%clk 0:00:37.9]} 33. Rxd4 {[%clk
0:00:22.4]} 33... Bb7 {[%clk 0:00:35.9]} 34. Bxb7 {[%clk 0:00:22.5]} 34... Rxb7
{[%clk 0:00:37.8]} 35. a4 {[%clk 0:00:23.6]} 35... Kf8 {[%clk 0:00:36.8]} 36.
Kf3 {[%clk 0:00:24.7]} 36... Ke8 {[%clk 0:00:37.4]} 37. Ke4 {[%clk 0:00:25.6]}
37... Kd7 {[%clk 0:00:38.3]} 38. Ke5 {[%clk 0:00:26.9]} 38... Rc8 {[%clk
0:00:37.7]} 39. Kf6 {[%clk 0:00:27.3]} 39... Rc5 {[%clk 0:00:38]} 40. Kxf7
{[%clk 0:00:26]} 40... g5 {[%clk 0:00:38.7]} 41. Kg6 {[%clk 0:00:25.6]} 41... g4
{[%clk 0:00:38.6]} 42. Rxg4 {[%clk 0:00:23.3]} 42... Rb8 {[%clk 0:00:39.5]} 43.
Kg7 {[%clk 0:00:19.7]} 43... Rf5 {[%clk 0:00:39]} 44. f4 {[%clk 0:00:19.6]}
44... Rbf8 {[%clk 0:00:39.6]} 45. Rg6 {[%clk 0:00:20.6]} 45... R5f7+ {[%clk
0:00:34]} 46. Kh6 {[%clk 0:00:21.6]} 46... Rf5 {[%clk 0:00:31.7]} 47. Rg7+
{[%clk 0:00:22.7]} 47... Kd8 {[%clk 0:00:33]} 48. d7 {[%clk 0:00:23.6]} 48...
Rh8+ {[%clk 0:00:30.6]} 49. Kg6 {[%clk 0:00:24.4]} 49... Rhf8 {[%clk 0:00:31.9]}
50. Kh7 {[%clk 0:00:23.6]} 50... Rh5+ {[%clk 0:00:31.8]} 51. Kg6 {[%clk
0:00:24.4]} 51... Rhf5 {[%clk 0:00:33.4]} 52. Kh6 {[%clk 0:00:20.4]} 52... Rh8+
{[%clk 0:00:30.1]} 53. Rh7 {[%clk 0:00:21.4]} 53... Rg8 {[%clk 0:00:28.7]} 54.
g4 {[%clk 0:00:18.6]} 54... Rxf4 {[%clk 0:00:28.1]} 55. Rg7 {[%clk 0:00:18.6]}
55... Rxg7 {[%clk 0:00:26.3]} 56. Kxg7 {[%clk 0:00:19.4]} 56... Rxg4+ {[%clk
0:00:27.8]} 57. Kf6 {[%clk 0:00:20.6]} 57... Rxc4 {[%clk 0:00:28.9]} 58. Kxe6
{[%clk 0:00:21.6]} 58... Rxa4 {[%clk 0:00:29.3]} 59. Kd6 {[%clk 0:00:21.4]}
59... Ra2 {[%clk 0:00:27.4]} 60. Rd5 {[%clk 0:00:21.4]} 60... a6 {[%clk
0:00:23.6]} 61. Kc6 {[%clk 0:00:21.5]} 61... b5 {[%clk 0:00:24.7]} 62. Re5
{[%clk 0:00:18.6]} 62... Rc2+ {[%clk 0:00:25.2]} 63. Kd6 {[%clk 0:00:17.5]}
63... Rd2+ {[%clk 0:00:25.9]} 64. Kc6 {[%clk 0:00:18.8]} 64... Rxd7 {[%clk
0:00:22.9]} 65. Kb6 {[%clk 0:00:19.7]} 65... Rd6+ {[%clk 0:00:23.4]} 66. Ka5
{[%clk 0:00:20.4]} 66... Kc7 {[%clk 0:00:24.1]} 67. Re7+ {[%clk 0:00:21.6]}
67... Rd7 {[%clk 0:00:24.4]} 68. Re6 {[%clk 0:00:22.8]} 68... Rd6 {[%clk
0:00:21.8]} 69. Re7+ {[%clk 0:00:24]} 69... Kc6 {[%clk 0:00:23]} 70. Kxa6 {[%clk
0:00:25.3]} 70... Kc5+ {[%clk 0:00:22]} 71. Ka5 {[%clk 0:00:26.6]} 71... b4
{[%clk 0:00:17.4]} 72. Rc7+ {[%clk 0:00:26]} 72... Rc6 {[%clk 0:00:18.3]} 73.
Rxc6+ {[%clk 0:00:27]} 73... Kxc6 {[%clk 0:00:20.1]} 74. Kxb4 {[%clk 0:00:28.8]}
1/2-1/2

[Event "*** Titled Tuesday Blitz"]
[Site "Chess.com"]
[Date "2018.06.05"]
[Round "4"]
[White "TrimitziosP7"]
[Black "GianmarcoVaR"]
[Result "0-1"]
[WhiteElo "2729"]
[BlackElo "2510"]
[TimeControl "180+2"]
[EndTime "14:00:27 PDT"]
[Termination "GianmarcoVaR won by resignation"]

1. Nf3 {[%clk 0:03:01.7]} 1... Nf6 {[%clk 0:03:01]} 2. c4 {[%clk 0:03:03.5]}
2... b6 {[%clk 0:03:01.6]} 3. g3 {[%clk 0:02:58]} 3... Bb7 {[%clk 0:03:03.5]} 4.
Bg2 {[%clk 0:02:59.9]} 4... c5 {[%clk 0:03:04.4]} 5. O-O {[%clk 0:03:01.2]} 5...
e6 {[%clk 0:03:05.4]} 6. Nc3 {[%clk 0:03:02.4]} 6... Be7 {[%clk 0:03:06.4]} 7.
d4 {[%clk 0:03:03]} 7... cxd4 {[%clk 0:03:06.8]} 8. Nxd4 {[%clk 0:03:04.7]} 8...
Bxg2 {[%clk 0:03:07.1]} 9. Kxg2 {[%clk 0:03:06.5]} 9... O-O {[%clk 0:03:08.5]}
10. e4 {[%clk 0:03:06.4]} 10... d6 {[%clk 0:03:08.7]} 11. Qe2 {[%clk 0:03:06]}
11... Qc7 {[%clk 0:03:08.7]} 12. f3 {[%clk 0:03:06.3]} 12... Nbd7 {[%clk
0:03:08.5]} 13. Be3 {[%clk 0:03:06.6]} 13... Rfe8 {[%clk 0:03:07.9]} 14. Rfd1
{[%clk 0:03:07.1]} 14... Rac8 {[%clk 0:03:07]} 15. b3 {[%clk 0:03:07]} 15... a6
{[%clk 0:02:53.8]} 16. Rac1 {[%clk 0:03:07.2]} 16... Qb7 {[%clk 0:02:51.7]} 17.
Nc2 {[%clk 0:03:05.6]} 17... b5 {[%clk 0:02:44.2]} 18. Bd4 {[%clk 0:02:58.9]}
18... bxc4 {[%clk 0:02:43.3]} 19. bxc4 {[%clk 0:03:00.5]} 19... Qc7 {[%clk
0:02:31.1]} 20. Ne3 {[%clk 0:02:59.3]} 20... Qa5 {[%clk 0:02:24.7]} 21. Nb1
{[%clk 0:02:57.5]} 21... Rc7 {[%clk 0:02:17.7]} 22. Rc2 {[%clk 0:02:56.8]} 22...
Rec8 {[%clk 0:02:18.2]} 23. Rdc1 {[%clk 0:02:58.1]} 23... Bf8 {[%clk 0:02:12.5]}
24. Nd2 {[%clk 0:02:58.5]} 24... Qa4 {[%clk 0:02:10.5]} 25. Nb3 {[%clk
0:02:59.2]} 25... Be7 {[%clk 0:02:04]} 26. h4 {[%clk 0:02:57.8]} 26... Rc6
{[%clk 0:01:36.7]} 27. g4 {[%clk 0:02:56.6]} 27... Bd8 {[%clk 0:01:36.4]} 28.
Qd2 {[%clk 0:02:53.2]} 28... Bb6 {[%clk 0:01:33.3]} 29. g5 {[%clk 0:02:53.2]}
29... Nh5 {[%clk 0:01:30.7]} 30. Bxb6 {[%clk 0:02:53]} 30... Rxb6 {[%clk
0:01:25.1]} 31. c5 {[%clk 0:02:51.4]} 31... dxc5 {[%clk 0:00:33]} 32. Nxc5
{[%clk 0:02:51.4]} 32... Nxc5 {[%clk 0:00:33.7]} 33. Rxc5 {[%clk 0:02:53.3]}
33... Re8 {[%clk 0:00:34.7]} 34. Ng4 {[%clk 0:02:46.3]} 34... Rbb8 {[%clk
0:00:33.5]} 35. R1c2 {[%clk 0:02:46]} 35... Rbd8 {[%clk 0:00:29.7]} 36. Qe3
{[%clk 0:02:42]} 36... Rd3 {[%clk 0:00:30]} 37. Qf2 {[%clk 0:02:37.2]} 37...
Nf4+ {[%clk 0:00:24.9]} 38. Kg3 {[%clk 0:02:37.3]} 38... Qxe4 {[%clk 0:00:24.1]}
39. R2c4 {[%clk 0:02:25.3]} 39... Nh5+ {[%clk 0:00:16.7]} 40. Kg2 {[%clk
0:02:25]} 40... Qa8 {[%clk 0:00:14.8]} 41. Ne5 {[%clk 0:02:23.6]} 41... Rd5
{[%clk 0:00:15.8]} 42. Qe3 {[%clk 0:02:17.7]} 42... Rxc5 {[%clk 0:00:15.5]} 43.
Rxc5 {[%clk 0:02:14.9]} 43... Qb7 {[%clk 0:00:16.6]} 44. Rc2 {[%clk 0:02:15.1]}
44... Rd8 {[%clk 0:00:16.9]} 45. Rd2 {[%clk 0:02:15.1]} 45... Rd5 {[%clk
0:00:11.2]} 46. Rc2 {[%clk 0:02:11.2]} 46... Qb8 {[%clk 0:00:09.8]} 47. Ng4
{[%clk 0:02:12.2]} 47... Nf4+ {[%clk 0:00:09.8]} 48. Kf1 {[%clk 0:02:02.2]}
48... Rd1+ {[%clk 0:00:08.8]} 49. Kf2 {[%clk 0:02:02.7]} 49... Nd3+ {[%clk
0:00:06.6]} 50. Ke2 {[%clk 0:02:02.4]} 50... Re1+ {[%clk 0:00:07.2]} 51. Kxd3
{[%clk 0:02:03]} 51... Rxe3+ {[%clk 0:00:04.5]} 52. Nxe3 {[%clk 0:02:04.9]}
52... h6 {[%clk 0:00:05.3]} 53. gxh6 {[%clk 0:02:05]} 53... gxh6 {[%clk
0:00:05.5]} 54. Rg2+ {[%clk 0:02:06.9]} 54... Kh7 {[%clk 0:00:05.5]} 55. Rc2
{[%clk 0:02:08.2]} 55... Qd8+ {[%clk 0:00:06.6]} 56. Ke2 {[%clk 0:02:09]} 56...
Qxh4 {[%clk 0:00:07.9]} 57. Ng4 {[%clk 0:02:07.3]} 57... h5 {[%clk 0:00:08.3]}
58. Nf2 {[%clk 0:02:07.7]} 58... Qa4 {[%clk 0:00:07.8]} 59. Rd2 {[%clk
0:02:08.5]} 59... Kg6 {[%clk 0:00:08.3]} 60. Nd3 {[%clk 0:02:08.7]} 60... f6
{[%clk 0:00:08.4]} 61. Rc2 {[%clk 0:02:09.5]} 61... e5 {[%clk 0:00:08.5]} 62.
Rd2 {[%clk 0:02:10.3]} 62... h4 {[%clk 0:00:09.7]} 63. Nf2 {[%clk 0:02:10.4]}
63... Qc4+ {[%clk 0:00:09.2]} 64. Ke3 {[%clk 0:02:09.7]} 64... f5 {[%clk
0:00:08]} 65. Rd6+ {[%clk 0:02:09.6]} 65... Kf7 {[%clk 0:00:09]} 66. Nd3 {[%clk
0:02:09.3]} 66... f4+ {[%clk 0:00:07.5]} 67. Kd2 {[%clk 0:02:09.8]} 67... Qxa2+
{[%clk 0:00:06.1]} 68. Ke1 {[%clk 0:02:10.7]} 68... Qb1+ {[%clk 0:00:06]} 69.
Kf2 {[%clk 0:02:11.6]} 69... Qc2+ {[%clk 0:00:05]} 70. Ke1 {[%clk 0:02:12.8]}
70... Qb1+ {[%clk 0:00:04.4]} 71. Ke2 {[%clk 0:02:13.9]} 71... Qa2+ {[%clk
0:00:05.5]} 72. Ke1 {[%clk 0:02:14.7]} 72... Qa1+ {[%clk 0:00:06]} 73. Kf2
{[%clk 0:02:15.3]} 73... h3 {[%clk 0:00:07.5]} 74. Rd7+ {[%clk 0:02:07]} 74...
Ke8 {[%clk 0:00:07.5]} 75. Rh7 {[%clk 0:02:02.6]} 75... Qa2+ {[%clk 0:00:08.2]}
76. Ke1 {[%clk 0:02:03.6]} 76... Qg2 {[%clk 0:00:07.4]} 77. Nf2 {[%clk
0:01:59.6]} 77... h2 {[%clk 0:00:07.5]} 78. Ke2 {[%clk 0:02:00.5]} 78... Qg1
{[%clk 0:00:05.4]} 79. Rh5 {[%clk 0:02:00.3]} 79... Kd8 {[%clk 0:00:06.1]} 80.
Rh7 {[%clk 0:01:58.7]} 80... Kc8 {[%clk 0:00:06.8]} 81. Rh5 {[%clk 0:01:56.8]}
81... a5 {[%clk 0:00:07.4]} 82. Rxe5 {[%clk 0:01:54.4]} 82... h1=Q {[%clk
0:00:08.4]} 83. Nxh1 {[%clk 0:01:55.1]} 83... Qxh1 {[%clk 0:00:09.5]} 84. Rg5
{[%clk 0:01:53.4]} 84... a4 {[%clk 0:00:08.9]} 85. Rc5+ {[%clk 0:01:53.6]} 85...
Kb7 {[%clk 0:00:08.8]} 86. Rb5+ {[%clk 0:01:53.7]} 86... Kc6 {[%clk 0:00:09.7]}
87. Rb4 {[%clk 0:01:53.9]} 87... Qg2+ {[%clk 0:00:09.9]} 88. Ke1 {[%clk
0:01:55]} 88... Qg1+ {[%clk 0:00:09]} 89. Ke2 {[%clk 0:01:55.8]} 89... Qe3+
{[%clk 0:00:09.4]} 90. Kd1 {[%clk 0:01:56.3]} 90... Qd3+ {[%clk 0:00:09.8]} 0-1

[Event "*** Titled Tuesday Blitz"]
[Site "Chess.com"]
[Date "2018.06.05"]
[Round "4"]
[White "Blitzstream"]
[Black "Doraemon7"]
[Result "0-1"]
[WhiteElo "2422"]
[BlackElo "2413"]
[TimeControl "180+2"]
[EndTime "14:00:42 PDT"]
[Termination "Doraemon7 won by resignation"]

1. Nf3 {[%clk 0:02:57.8]} 1... d5 {[%clk 0:02:59.5]} 2. g3 {[%clk 0:02:58.5]}
2... c6 {[%clk 0:02:58.6]} 3. Bg2 {[%clk 0:02:59.7]} 3... Bg4 {[%clk 0:03:00]}
4. O-O {[%clk 0:03:00.7]} 4... Nd7 {[%clk 0:02:57.1]} 5. c4 {[%clk 0:03:01.3]}
5... e6 {[%clk 0:02:56.2]} 6. Qb3 {[%clk 0:03:01.8]} 6... Qb6 {[%clk 0:02:56.9]}
7. Qc2 {[%clk 0:03:00.1]} 7... Ngf6 {[%clk 0:02:57.4]} 8. d3 {[%clk 0:03:00.9]}
8... Bd6 {[%clk 0:02:55.4]} 9. Be3 {[%clk 0:03:01]} 9... Qc7 {[%clk 0:02:49.3]}
10. Nc3 {[%clk 0:03:00.5]} 10... O-O {[%clk 0:02:48.7]} 11. Rfc1 {[%clk
0:02:58.9]} 11... a6 {[%clk 0:02:47.3]} 12. Rab1 {[%clk 0:02:55.7]} 12... Qd8
{[%clk 0:02:41.9]} 13. b4 {[%clk 0:02:54.4]} 13... e5 {[%clk 0:02:42.7]} 14. Bg5
{[%clk 0:02:34.4]} 14... h6 {[%clk 0:02:38.1]} 15. Bd2 {[%clk 0:02:28.4]} 15...
Qe7 {[%clk 0:02:31]} 16. e4 {[%clk 0:02:17]} 16... d4 {[%clk 0:02:25.2]} 17. Ne2
{[%clk 0:02:15.8]} 17... c5 {[%clk 0:02:10]} 18. a3 {[%clk 0:02:07.9]} 18...
Rfc8 {[%clk 0:01:54.3]} 19. h3 {[%clk 0:02:07.6]} 19... Bxf3 {[%clk 0:01:53.8]}
20. Bxf3 {[%clk 0:02:08.5]} 20... Nf8 {[%clk 0:01:43.2]} 21. g4 {[%clk
0:01:56.7]} 21... Ne6 {[%clk 0:01:44.1]} 22. Ng3 {[%clk 0:01:57.5]} 22... Qd7
{[%clk 0:01:29.6]} 23. Nf5 {[%clk 0:01:54.6]} 23... Bf8 {[%clk 0:01:30.7]} 24.
h4 {[%clk 0:01:38]} 24... Ne8 {[%clk 0:01:11.3]} 25. Qb3 {[%clk 0:01:03.4]}
25... Kh7 {[%clk 0:01:02.3]} 26. g5 {[%clk 0:00:51.8]} 26... hxg5 {[%clk
0:00:52.5]} 27. hxg5 {[%clk 0:00:52.8]} 27... Be7 {[%clk 0:00:53.6]} 28. Kg2
{[%clk 0:00:43.3]} 28... Bxg5 {[%clk 0:00:45.6]} 29. Bxg5 {[%clk 0:00:43.5]}
29... Nxg5 {[%clk 0:00:46.8]} 30. bxc5 {[%clk 0:00:44]} 30... g6 {[%clk
0:00:40.7]} 31. Rh1+ {[%clk 0:00:40.8]} 31... Kg8 {[%clk 0:00:38.6]} 32. Nh6+
{[%clk 0:00:36.8]} 32... Kg7 {[%clk 0:00:39.5]} 33. Bg4 {[%clk 0:00:38.7]} 33...
Ne6 {[%clk 0:00:21.2]} 34. Qxb7 {[%clk 0:00:39]} 34... N8c7 {[%clk 0:00:21.3]}
35. c6 {[%clk 0:00:25.9]} 35... Qe7 {[%clk 0:00:20.4]} 36. Bxe6 {[%clk
0:00:18.9]} 36... Qxe6 {[%clk 0:00:19.8]} 37. Rh4 {[%clk 0:00:18.8]} 37... Qd6
{[%clk 0:00:16.7]} 38. Qb4 {[%clk 0:00:17.6]} 38... Qf6 {[%clk 0:00:16.3]} 39.
Qd2 {[%clk 0:00:16.9]} 39... Qxc6 {[%clk 0:00:14.9]} 40. Rbh1 {[%clk 0:00:16.3]}
40... Ne6 {[%clk 0:00:15.5]} 41. Nf5+ {[%clk 0:00:15.7]} 41... Kf6 {[%clk
0:00:14.9]} 42. Rh7 {[%clk 0:00:08.8]} 42... Nf4+ {[%clk 0:00:15.4]} 43. Kf3
{[%clk 0:00:09.3]} 43... gxf5 {[%clk 0:00:15]} 44. R1h6+ {[%clk 0:00:10.1]}
44... Ng6 {[%clk 0:00:16.2]} 45. Rh5 {[%clk 0:00:08.4]} 45... f4 {[%clk
0:00:15.2]} 46. Rf5+ {[%clk 0:00:07.3]} 46... Ke7 {[%clk 0:00:14.8]} 47. Rhxf7+
{[%clk 0:00:07.6]} 47... Ke8 {[%clk 0:00:14.3]} 48. R5f6 {[%clk 0:00:08.1]}
48... Nh4+ {[%clk 0:00:14.7]} 49. Kg4 {[%clk 0:00:09.3]} 49... Qc5 {[%clk
0:00:13.3]} 50. Kxh4 {[%clk 0:00:08.6]} 50... Rc7 {[%clk 0:00:14.5]} 51. Rxc7
{[%clk 0:00:06.6]} 51... Qxc7 {[%clk 0:00:16.4]} 52. Qb4 {[%clk 0:00:06.8]}
52... Qh7+ {[%clk 0:00:15.9]} 53. Kg5 {[%clk 0:00:07.8]} 53... Qg7+ {[%clk
0:00:16.2]} 54. Kf5 {[%clk 0:00:09.2]} 54... Qd7+ {[%clk 0:00:17.2]} 55. Kxe5
{[%clk 0:00:10.1]} 55... Qc7+ {[%clk 0:00:15.5]} 56. Kf5 {[%clk 0:00:10.1]}
56... Qh7+ {[%clk 0:00:15.4]} 57. Kxf4 {[%clk 0:00:09.9]} 57... Qh4+ {[%clk
0:00:16.5]} 58. Kf5 {[%clk 0:00:11]} 58... Qh5+ {[%clk 0:00:15.9]} 59. Ke6
{[%clk 0:00:10.4]} 59... Qh3+ {[%clk 0:00:07.4]} 60. Ke5 {[%clk 0:00:11.4]}
60... Qh5+ {[%clk 0:00:06.6]} 61. Rf5 {[%clk 0:00:10.9]} 61... Qh2+ {[%clk
0:00:07.4]} 62. f4 {[%clk 0:00:11.7]} 62... Qh8+ {[%clk 0:00:09]} 63. Rf6 {[%clk
0:00:12.9]} 63... Qh5+ {[%clk 0:00:10]} 64. Ke6 {[%clk 0:00:13.3]} 64... Qg4+
{[%clk 0:00:09]} 65. f5 {[%clk 0:00:10.7]} 65... Qg8+ {[%clk 0:00:10]} 66. Ke5
{[%clk 0:00:11.9]} 66... Qg3+ {[%clk 0:00:10.9]} 67. Ke6 {[%clk 0:00:10.7]}
67... Qg8+ {[%clk 0:00:11.5]} 68. Ke5 {[%clk 0:00:08.6]} 68... Qg3+ {[%clk
0:00:12.1]} 69. Kxd4 {[%clk 0:00:07.7]} 69... Rd8+ {[%clk 0:00:11.1]} 70. Kc3
{[%clk 0:00:08.7]} 70... Qe5+ {[%clk 0:00:12.1]} 71. Kb3 {[%clk 0:00:10.1]}
71... Qxf6 {[%clk 0:00:13.1]} 72. Qb7 {[%clk 0:00:08.6]} 72... Rxd3+ {[%clk
0:00:13.5]} 73. Ka4 {[%clk 0:00:09.1]} 73... Qe7 {[%clk 0:00:12.5]} 74. Qxa6
{[%clk 0:00:04.4]} 74... Rxa3+ {[%clk 0:00:10.8]} 0-1